fUSD/lending_fUSD_20260107
["ID","MTS","AMOUNT","RATE_DAILY","PERIOD"]
[400721473,1767796242573,-1000.0,0.00017808,2]
[400721474,1767796242583,-300.0,0.0001781,2]
[400721475,1767796242593,-461.04561562,0.00017815,2]
[400721476,1767796242606,-300.0,0.00017819,2]
[400721477,1767796242616,-1000.0,0.00017821,2]
[400721478,1767796242627,-1000.0,0.00017825,2]
[400721479,1767796242636,-300.0,0.00017825,2]
[400721480,1767796242645,-300.0,0.00017825,2]
[400721481,1767796242654,-150.0,0.00017827,2]
[400721482,1767796242663,-150.0,0.00017828,2]
[400721483,1767796242672,-1000.0,0.00017829,2]
[400721484,1767796242682,-300.0,0.00017829,2]
[400721485,1767796242691,-300.0,0.00017831,2]
[400721486,1767796242700,-300.0,0.00017833,2]
[400721487,1767796242715,-4371.0,0.00017834,2]
[400721488,1767796242724,-535.0,0.00017836,2]
[400721489,1767796242733,-150.0,0.00017838,2]
[400721490,1767796242743,-390.0,0.00017838,2]
[400721491,1767796242752,-1000.0,0.00017839,2]
[400721492,1767796242761,-1000.0,0.00017846,2]
[400721493,1767796242771,-300.0,0.00017847,2]
[400721494,1767796242781,-150.0,0.00017848,2]
[400721495,1767796242791,-1000.0,0.00017848,2]
[400721496,1767796242800,-1000.0,0.00017849,2]
[400721497,1767796242809,-300.0,0.0001785,2]
[400721498,1767796242818,-1000.0,0.00017853,2]
[400721499,1767796242828,-200.0,0.00017856,2]
[400721500,1767796242837,-300.0,0.00017858,2]
[400721501,1767796242847,-300.0,0.00017864,2]
[400721502,1767796242856,-300.0,0.00017865,2]
[400721503,1767796242866,-535.0,0.00017867,2]
[400721504,1767796242875,-300.0,0.00017867,2]
[400721505,1767796242884,-300.0,0.00017871,2]
[400721506,1767796242894,-300.0,0.00017872,2]
[400721507,1767796242903,-1000.0,0.00017872,2]
[400721508,1767796242913,-300.0,0.00017875,2]
[400721509,1767796242922,-150.0,0.00017876,2]
[400721510,1767796242931,-300.0,0.00017876,2]
[400721511,1767796242941,-300.0,0.00017877,2]
[400721512,1767796242951,-150.0,0.00017879,2]
[400721513,1767796242963,-300.0,0.0001788,2]
[400721514,1767796242972,-1000.0,0.00017881,2]
[400721515,1767796242982,-1000.0,0.00017883,2]
[400721516,1767796242991,-300.0,0.00017884,2]
[400721517,1767796243001,-1000.0,0.00017885,2]
[400721518,1767796243010,-300.0,0.00017886,2]
[400721519,1767796243019,-150.0,0.00017887,2]
[400721520,1767796243029,-1000.0,0.00017887,2]
[400721521,1767796243039,-300.76583799,0.0001789,2]
[400721522,1767796243049,-300.0,0.00017893,2]
[400721523,1767796243059,-300.0,0.00017895,2]
[400721524,1767796243068,-25000.0,0.000179,3]
[400721525,1767796243077,-809.56962268,0.000179,2]
[400721526,1767796243087,-16789.65997135,0.000179,2]
[400721527,1767796243096,-11247.20612612,0.000179,2]
[400721528,1767796243106,-1124.81961422,0.000179,2]
[400721529,1767796243115,-8600.6203442,0.000179,2]
[400721530,1767796243124,-1471.22657718,0.000179,2]
[400721531,1767796243133,-10268.97964275,0.000179,2]
[400721533,1767796243143,-1000.0,0.00017901,2]
[400721534,1767796243152,-300.0,0.00017901,2]
[400721535,1767796243162,-300.0,0.00017908,2]
[400721536,1767796243171,-1000.0,0.00017909,2]
[400721537,1767796243181,-1000.0,0.0001791,2]
[400721538,1767796243191,-1100.0,0.00017914,2]
[400721539,1767796243201,-300.0,0.00017919,2]
[400721540,1767796243213,-1132.81,0.00017921,2]
[400721541,1767796243223,-300.0,0.00017921,2]
[400721542,1767796243233,-300.0,0.00017922,2]
[400721543,1767796243242,-300.0,0.00017927,2]
[400721544,1767796243252,-300.0,0.00017928,2]
[400721545,1767796243262,-300.0,0.00017928,2]
[400721546,1767796243271,-150.0,0.00017929,2]
[400721547,1767796243281,-300.0,0.00017932,2]
[400721548,1767796243290,-300.0,0.00017933,2]
[400721549,1767796243300,-1000.0,0.00017935,2]
[400721550,1767796243310,-1000.0,0.00017936,2]
[400721551,1767796243319,-1000.0,0.00017937,2]
[400721552,1767796243339,-300.0,0.00017938,2]
[400721553,1767796243350,-300.0,0.0001794,2]
[400721554,1767796243360,-300.0,0.00017941,2]
[400721555,1767796243370,-300.0,0.00017944,2]
[400721556,1767796243381,-1000.0,0.00017946,2]
[400721557,1767796243390,-300.0,0.00017948,2]
[400721558,1767796243401,-300.0,0.0001795,2]
[400721559,1767796243411,-1000.0,0.00017951,2]
[400721560,1767796243421,-300.0,0.00017951,2]
[400721561,1767796243431,-1000.0,0.00017951,2]
[400721562,1767796243441,-300.0,0.00017952,2]
[400721563,1767796243450,-1000.0,0.00017953,2]
[400721564,1767796243462,-300.0,0.0001796,2]
[400721565,1767796243472,-1000.0,0.00017963,2]
[400721566,1767796243482,-535.0,0.00017964,2]
[400721567,1767796243491,-150.0,0.00017966,2]
[400721568,1767796243501,-300.0,0.00017968,2]
[400721569,1767796243511,-300.0,0.00017968,2]
[400721570,1767796243520,-1000.0,0.00017969,2]
[400721571,1767796243530,-1000.0,0.0001797,2]
[400721572,1767796243540,-1000.0,0.0001797,2]
[400721573,1767796243551,-300.0,0.00017971,2]
[400721574,1767796243560,-1000.0,0.00017971,2]
[400721575,1767796243570,-300.0,0.00017973,2]
[400721576,1767796243580,-300.0,0.00017973,2]
[400721577,1767796243595,-300.0,0.00017975,2]
[400721578,1767796243604,-300.0,0.00017975,2]
[400721579,1767796243614,-300.0,0.00017979,2]
[400721580,1767796243624,-300.0,0.0001798,2]
[400721581,1767796243636,-300.0,0.00017981,2]
[400721582,1767796243646,-150.0,0.00017981,2]
[400721583,1767796243657,-500.0,0.00017982,2]
[400721584,1767796243667,-300.0,0.00017986,2]
[400721585,1767796243678,-300.0,0.00017987,2]
[400721586,1767796243689,-535.0,0.00017988,2]
[400721587,1767796243700,-300.0,0.00017989,2]
[400721588,1767796243711,-300.76583799,0.0001799,2]
[400721589,1767796243721,-300.76583799,0.0001799,2]
[400721590,1767796243731,-300.0,0.00017991,2]
[400721591,1767796243741,-300.0,0.00017992,2]
[400721592,1767796243750,-300.0,0.00017994,2]
[400721593,1767796243760,-6566.0,0.00017995,2]
[400721594,1767796243770,-271.6390509,0.00017995,2]
[400721595,1767796243779,-151.0,0.00017997,2]
[400721596,1767796243789,-300.0,0.00017999,2]
[400721597,1767796243799,-300.0,0.00017999,2]
[400721598,1767796243808,-274.431,0.00017999,2]
[400721599,1767796243818,-300.0,0.00017999,2]
[400721600,1767796243828,-179.90932368,0.00017999,2]
[400721601,1767796243838,-276.34900722,0.00017999,2]
[400721602,1767796243848,-300.0,0.00017999,2]
[400721603,1767796243858,-666.0,0.00017999,2]
[400721604,1767796243868,-324.469639,0.00018,2]
[400721605,1767796243878,-283507.62871561,0.00018,2]
[400721606,1767796243887,-1000.0,0.00018,2]
[400721607,1767796243898,-1000.0,0.00018,2]
[400721608,1767796243907,-1000.0,0.00018,2]
[400721609,1767796243917,-1000.0,0.00018,2]
[400721610,1767796243927,-1000.0,0.00018,2]
[400721611,1767796243937,-1000.0,0.00018,2]
[400721612,1767796243947,-1000.0,0.00018,2]
[400721613,1767796243959,-1000.0,0.00018,2]
[400721614,1767796243970,-1000.0,0.00018,2]
[400721615,1767796243979,-1000.0,0.00018,2]
[400721616,1767796243989,-1000.0,0.00018,2]
[400721617,1767796244000,-1000.0,0.00018,2]
[400721618,1767796244010,-1000.0,0.00018,2]
[400721619,1767796244020,-1000.0,0.00018,2]
[400721620,1767796244030,-1000.0,0.00018,2]
[400721621,1767796244040,-1000.0,0.00018,2]
[400721622,1767796244049,-1000.0,0.00018,2]
[400721623,1767796244059,-1000.0,0.00018,2]
[400721624,1767796244069,-1000.0,0.00018,2]
[400721625,1767796244078,-1000.0,0.00018,2]
[400721626,1767796244088,-1000.0,0.00018,2]
[400721627,1767796244098,-1000.0,0.00018,2]
[400721628,1767796244108,-1000.0,0.00018,2]
[400721629,1767796244117,-1000.0,0.00018,2]
[400721630,1767796244127,-1000.0,0.00018,2]
[400721631,1767796244137,-1000.0,0.00018,2]
[400721632,1767796244146,-838.60419167,0.00018,2]
[400721633,1767796244156,-151.0,0.00018,2]
[400721634,1767796244166,-151.0,0.00018,2]
[400721635,1767796244176,-200.0,0.00018,2]
[400721636,1767796244186,-158.0,0.00018,2]
[400721637,1767796244196,-158.0,0.00018,2]
[400721638,1767796244209,-158.0,0.00018,2]
[400721639,1767796244219,-156.3554653,0.00018,2]
[400721640,1767796244229,-200.0,0.00018,2]
[400721641,1767796244239,-2800123.59656229,0.00018,2]
[400721685,1767796246568,-275.0504,0.00018,2]
[400721688,1767796246594,-531.08040252,0.00018,2]
[400721691,1767796246617,-526.97673635,0.00018,2]
[400721702,1767796246982,-1.7e-07,0.00018,2]
[400721711,1767796251611,-622.34472312,0.00016724,2]
[400721712,1767796251621,-1009.54175655,0.000179,2]
[400721713,1767796251683,-387.52583067,0.000179,2]
[400721714,1767796251693,-403.99226478,0.000179,3]
[400721715,1767796251703,-6870.79138894,0.00018,2]
[400721716,1767796252138,6350.38883987,0.00015426,2]
[400721717,1767796252164,6207.22326013,0.00015426,2]
[400721718,1767796252303,-178.65491643,0.0001692,2]
[400721719,1767796252317,-320.524098,0.0001692,2]
[400721720,1767796252358,-123.16570864,0.0001692,2]
[400721721,1767796252368,-197.11429136,0.00018,2]
[400721722,1767796252379,-275.26,0.00018,2]
[400721723,1767796252391,-312.802,0.00018,2]
[400721724,1767796263845,3792.78673987,0.00015426,2]
[400721725,1767796263874,10000.01,0.00015426,2]
[400721726,1767796263902,10000.01,0.00015426,2]
[400721727,1767796263931,10000.01,0.00015426,2]
[400721728,1767796263969,10000.01,0.00015426,2]
[400721729,1767796264000,10000.01,0.00015426,2]
[400721730,1767796264029,10000.01,0.00015426,2]
[400721731,1767796264058,10000.01,0.00015426,2]
[400721732,1767796264087,10000.01,0.00015426,2]
[400721735,1767796270122,522.3,0.0002,30]
[400721737,1767796271475,-250.0,0.00015426,2]
[400721740,1767796300314,-3319.801,0.00015118,2]
[400721741,1767796300346,-190.761,0.00015118,2]
[400721742,1767796300852,-298.25789476,0.00015426,2]
[400721743,1767796314898,-250.0,0.00015426,2]
[400721744,1767796315120,-2978.886,0.00015426,2]
[400721745,1767796315210,-10000.01,0.00015426,2]
[400721746,1767796315406,-10000.01,0.00015426,2]
[400721747,1767796315670,-10000.01,0.00015426,2]
[400721748,1767796323906,-300.0,0.00015425,2]
[400721749,1767796324177,-9400.01,0.00015426,2]
[400721750,1767796324306,-10000.01,0.00015426,2]
[400721751,1767796324389,-10000.01,0.00015426,2]
[400721752,1767796324632,-10000.01,0.00015426,2]
[400721753,1767796324848,-10000.01,0.00015426,2]
[400721754,1767796324950,-10000.01,0.00015426,2]
[400721755,1767796325168,-10000.01,0.00015426,2]
[400721769,1767796369734,6760.0,0.00032877,120]
[400721770,1767796389193,500.0,0.00029999,120]
[400721771,1767796389737,500.0,0.00032876,120]
[400721772,1767796389987,-183.9033222,0.00015326,2]
[400721773,1767796390020,-3485.87399289,0.00015425,2]
[400721774,1767796390054,-300.0,0.00015425,2]
[400721775,1767796390089,-300.0,0.00015425,2]
[400721776,1767796390243,-1460.45536982,0.00015426,2]
[400721777,1767796390382,-10000.01,0.00015426,2]
[400721778,1767796390569,-10000.01,0.00015426,2]
[400721779,1767796390699,-10000.01,0.00015426,2]
[400721780,1767796390884,-10000.01,0.00015426,2]
[400721781,1767796391144,-10000.01,0.00015426,2]
[400721783,1767796391346,-10000.01,0.00015426,2]
[400721784,1767796391580,-10000.01,0.00015426,2]
[400721785,1767796391756,-10000.01,0.00015426,2]
[400721786,1767796392008,-10000.01,0.00015426,2]
[400721789,1767796404098,-10000.01,0.00015426,2]
[400721791,1767796408768,206.0,9.989e-05,2]
[400721792,1767796409068,206.0,9.989e-05,2]
[400721793,1767796409397,206.0,9.989e-05,2]
[400721794,1767796409670,206.0,9.989e-05,2]
[400721795,1767796425886,-238.18529815,0.00015425,2]
[400721796,1767796425919,-152.17610442,0.00015425,2]
[400721797,1767796426154,-9219.28719486,0.00015426,2]
[400721798,1767796426374,-10000.01,0.00015426,2]
[400721799,1767796426389,-10000.01,0.00015426,2]
[400721800,1767796438033,-500.0,0.00015425,2]
[400721801,1767796438066,-500.0,0.00015425,2]
[400721802,1767796438101,-500.0,0.00015425,2]
[400721803,1767796438136,-500.0,0.00015425,2]
[400721804,1767796438170,-500.0,0.00015425,2]
[400721805,1767796438206,-500.0,0.00015425,2]
[400721806,1767796438241,-500.0,0.00015425,2]
[400721807,1767796438275,-500.0,0.00015425,2]
[400721808,1767796438308,-500.0,0.00015425,2]
[400721809,1767796438342,-500.0,0.00015425,2]
[400721810,1767796439610,-0.01,0.00015425,2]
[400721811,1767796501556,-4801.24169272,0.00015326,2]
[400721812,1767796501588,-97.52661456,0.00015425,2]
[400721813,1767796502006,-202.47338544,0.00015425,2]
[400721815,1767796504411,-300.0,0.00015425,2]
[400721816,1767796504448,-1200.0,0.00015425,2]
[400721817,1767796504482,-250.0,0.00015426,2]
[400721819,1767796504897,-6500.01,0.00015426,2]
[400721822,1767796508874,160.0,0.00032529,120]
[400721823,1767796509561,-10000.01,0.00015426,2]
[400721824,1767796510834,-10000.01,0.00015426,2]
[400721825,1767796517247,166.0,0.000328,120]
[400721827,1767796528804,-1218.04,0.00015425,2]
[400721828,1767796528842,-2227.49574114,0.00015425,2]
[400721829,1767796528910,-3108.93851772,0.00015426,2]
[400721830,1767796550206,-1424.85716898,0.00015326,2]
[400721831,1767796550377,-7150.29566204,0.00015326,2]
[400721837,1767796568520,-300.0,0.00015424,2]
[400721838,1767796571119,304.0272,0.000328,120]
[400721840,1767796582430,-218.25828281,0.00015326,2]
[400721841,1767796586311,-153.60019209,0.00015326,2]
[400721842,1767796592407,-195.0,0.00015326,2]
[400721843,1767796598760,-300.0,0.00015326,2]
[400721844,1767796602321,-133.1415251,0.00015326,2]
[400721845,1767796602344,-61.8584749,0.00015347,2]
[400721846,1767796605666,-496.06750488,0.00015347,2]
[400721847,1767796627764,-222.97836515,0.00015347,2]
[400721848,1767796644124,1000.0,0.00032877,120]
[400721849,1767796645934,162.37,0.000328,120]
[400721850,1767796652774,5081.263287,0.00015308,2]
[400721851,1767796653870,-195.0,0.00015385,2]
[400721852,1767796653892,-195.0,0.00015409,2]
[400721853,1767796653914,-200.0,0.00015417,2]
[400721854,1767796653936,-168.49819318,0.00015417,2]
[400721855,1767796658323,-44.4238419,0.00015417,2]
[400721856,1767796658352,-282.82985658,0.00015417,2]
[400721857,1767796658715,1000.0,0.00032877,120]
[400721858,1767796661814,-217.17014342,0.00015417,2]
[400721859,1767796661838,-80.17598998,0.00015417,2]
[400721860,1767796663270,1718.46296311,0.00015326,2]
[400721861,1767796671052,1000.0,0.00032877,120]
[400721862,1767796681947,1000.0,0.00032877,120]
[400721863,1767796687868,150.0,0.00015008,2]
[400721864,1767796690032,298.4562,0.00015226,2]
[400721865,1767796714880,990.9,0.00014986,2]
[400721866,1767796715563,-300.0,0.00015326,2]
[400721867,1767796747535,-250.0,0.00015326,2]
[400721868,1767796793667,-248.88986117,0.00015326,2]
[400721869,1767796801385,300.0,0.00015325,2]
[400721870,1767796801422,300.0,0.00015325,2]
[400721871,1767796801591,1160.92754989,0.00015325,2]
[400721872,1767796801617,39.07245011,0.00015325,2]
[400721873,1767796806544,278.0,0.00015326,2]
[400721875,1767796822152,-254.02462231,0.00015326,2]
[400721876,1767796823393,-196.6237884,0.00015326,2]
[400721878,1767796828887,-2122.56572812,0.00015326,2]
[400721879,1767796828918,-1000.0,0.00015326,2]
[400721880,1767796828949,-1254.87854376,0.00015326,2]
[400721881,1767796830297,-1245.12145624,0.00015326,2]
[400721886,1767796852474,250.7765,0.00015326,2]
[400721887,1767796858903,3933.211926,0.0001532,2]
[400721888,1767796881337,767.92,0.00014848,2]
[400721889,1767796892506,-4314.3259,0.00015397,2]
[400721890,1767796892538,-300.0,0.00015407,2]
[400721891,1767796892570,-300.0,0.00015416,2]
[400721892,1767796893241,-300.0,0.00015416,2]
[400721893,1767796893274,-119.82401002,0.00015417,2]
[400721894,1767796893306,-151.0,0.00015417,2]
[400721895,1767796893340,-151.0,0.00015417,2]
[400721896,1767796893376,-151.0,0.00015417,2]
[400721897,1767796893408,-151.0,0.00015417,2]
[400721898,1767796893445,-151.0,0.00015417,2]
[400721899,1767796893480,-151.0,0.00015417,2]
[400721900,1767796893519,-151.0,0.00015417,2]
[400721901,1767796893553,-151.0,0.00015417,2]
[400721902,1767796893587,-151.0,0.00015417,2]
[400721903,1767796893620,-151.0,0.00015417,2]
[400721904,1767796893654,-151.0,0.00015417,2]
[400721905,1767796893687,-195.0,0.0001542,2]
[400721906,1767796893729,-300.0,0.00015424,2]
[400721907,1767796893770,-500.0,0.00015424,2]
[400721908,1767796893811,-500.0,0.00015424,2]
[400721909,1767796893854,-500.0,0.00015424,2]
[400721910,1767796893892,-340.32682716,0.00015424,2]
[400721911,1767796893928,-500.0,0.00015424,2]
[400721912,1767796894753,-258.94882433,0.00015424,2]
[400721913,1767796896274,2557.85866152,0.00015326,2]
[400721914,1767796896298,10000.01,0.00015326,2]
[400721915,1767796896323,10000.01,0.00015326,2]
[400721916,1767796896347,10000.01,0.00015326,2]
[400721917,1767796896371,10000.01,0.00015326,2]
[400721918,1767796896395,10000.01,0.00015326,2]
[400721919,1767796896419,547.47163848,0.00015326,2]
[400721920,1767796897916,-152.608,0.00015424,2]
[400721921,1767796897943,-42.392,0.00015424,2]
[400721922,1767796898991,-2613.449,0.00015424,2]
[400721923,1767796899026,-241.05117567,0.00015424,2]
[400721924,1767796899060,-500.0,0.00015424,2]
[400721925,1767796899094,-500.0,0.00015424,2]
[400721926,1767796899128,-500.0,0.00015424,2]
[400721927,1767796899162,-500.0,0.00015424,2]
[400721928,1767796899386,-500.0,0.00015424,2]
[400721929,1767796899422,-500.0,0.00015424,2]
[400721930,1767796899457,-500.0,0.00015424,2]
[400721931,1767796899491,-500.0,0.00015424,2]
[400721932,1767796899527,-500.0,0.00015424,2]
[400721933,1767796899562,-500.0,0.00015424,2]
[400721934,1767796899598,-500.0,0.00015424,2]
[400721935,1767796899633,-500.0,0.00015424,2]
[400721936,1767796899668,-500.0,0.00015424,2]
[400721937,1767796899703,-500.0,0.00015424,2]
[400721938,1767796902713,-321.17076733,0.00015424,2]
[400721939,1767796905213,-163.14635088,0.00015326,2]
[400721940,1767796906941,-490.16894231,0.00015326,2]
[400721941,1767796910085,-156.21597287,0.00015326,2]
[400721942,1767796913018,-1690.46873394,0.00015326,2]
[400721943,1767796916915,-162.8541716,0.00015424,2]
[400721944,1767796919603,-15.97506107,0.00015424,2]
[400721945,1767796919636,-181.26334522,0.00015424,2]
[400721946,1767796921431,-172.18448779,0.00015424,2]
[400721947,1767796923256,-300.0,0.00015423,2]
[400721948,1767796923283,-41.30165096,0.00015423,2]
[400721949,1767796924654,-206.74282152,0.00015423,2]
[400721950,1767796928263,-42.95552752,0.00015423,2]
[400721951,1767796928295,-146.55216699,0.00015424,2]
[400721952,1767796928327,-132.18792128,0.00015424,2]
[400721953,1767796929887,-258.05181576,0.00015424,2]
[400721954,1767796933147,-109.76026296,0.00015424,2]
[400721955,1767796933174,-215.52745536,0.00015424,2]
[400721956,1767796942508,-309.59234462,0.00015347,2]
[400721957,1767796946358,-277.23348557,0.00015347,2]
[400721958,1767796946490,1000.0,0.00032876,120]
[400721959,1767796947484,1852.42,0.00014937,2]
[400721960,1767796949489,-297.97604525,0.00015347,2]
[400721961,1767796951102,-144.99281456,0.00015347,2]
[400721962,1767796951126,-176.82092839,0.00015385,2]
[400721963,1767796953234,-358.99583138,0.00015385,2]
[400721964,1767796956503,-225.43732334,0.00015385,2]
[400721965,1767796958862,-117.79326368,0.00015385,2]
[400721966,1767796958887,-71.69003632,0.00015417,2]
[400721967,1767796960538,-157.570551,0.00015417,2]
[400721968,1767796962481,-97.99311116,0.00015417,2]
[400721969,1767796962506,-80.56352111,0.00015417,2]
[400721970,1767796965149,-179.95227903,0.00015417,2]
[400721971,1767796965603,265.87,0.00015084,2]
[400721972,1767796965868,200.00962195,0.00015317,2]
[400721973,1767796971864,-239.48419986,0.00015417,2]
[400721974,1767796971889,-151.0,0.00015417,2]
[400721975,1767796971915,-36.41020101,0.00015417,2]
[400721976,1767796975535,-114.58979899,0.00015417,2]
[400721977,1767796975561,-151.0,0.00015417,2]
[400721978,1767796975585,-29.24981913,0.00015417,2]
[400721979,1767796977539,-121.75018087,0.00015417,2]
[400721980,1767796977564,-151.0,0.00015417,2]
[400721981,1767796977589,-36.65934205,0.00015417,2]
[400721982,1767796979508,-114.34065795,0.00015417,2]
[400721983,1767796979536,-88.79546217,0.00015417,2]
[400721984,1767796981212,-62.20453783,0.00015417,2]
[400721985,1767796981235,-151.0,0.00015417,2]
[400721986,1767796981258,-75.20362246,0.00015417,2]
[400721987,1767796986962,-75.79637754,0.00015417,2]
[400721988,1767796986986,-126.68440745,0.00015417,2]
[400721989,1767796988603,-24.31559255,0.00015417,2]
[400721990,1767796988628,-197.03465754,0.00015417,2]
[400721991,1767796988936,1000.0,0.00032876,120]
[400721992,1767796990138,-2.96534246,0.00015417,2]
[400721993,1767796990160,-151.0,0.00015417,2]
[400721994,1767796990181,-195.0,0.0001542,2]
[400721995,1767796990203,-300.0,0.00015424,2]
[400721996,1767796990225,-300.0,0.00015424,2]
[400721997,1767796990245,-500.0,0.00015425,2]
[400721998,1767796990266,-2722.85282116,0.00015425,2]
[400721999,1767796990287,-281.83931929,0.00015425,2]
[400722000,1767796990309,-3874.97124849,0.00015425,2]
[400722001,1767796990333,-500.0,0.00015425,2]
[400722002,1767796990356,-500.0,0.00015425,2]
[400722003,1767796990378,-500.0,0.00015425,2]
[400722004,1767796990401,-27247.72479517,0.00015425,2]
[400722005,1767796990424,-500.0,0.00015425,2]
[400722006,1767796990446,-500.0,0.00015425,2]
[400722007,1767796990468,-1503.65509273,0.00015425,2]
[400722008,1767796990490,-16222.58107527,0.00015425,2]
[400722009,1767796990516,-500.0,0.00015425,2]
[400722010,1767796990543,-500.0,0.00015425,2]
[400722011,1767796990570,-500.0,0.00015425,2]
[400722012,1767796990596,-500.0,0.00015425,2]
[400722013,1767796990622,-500.0,0.00015425,2]
[400722014,1767796990648,-500.0,0.00015425,2]
[400722015,1767796990674,-500.0,0.00015425,2]
[400722016,1767796990699,-500.0,0.00015425,2]
[400722017,1767796990723,-500.0,0.00015425,2]
[400722018,1767796990748,-500.0,0.00015425,2]
[400722019,1767796990773,-500.0,0.00015425,2]
[400722020,1767796990797,-500.0,0.00015425,2]
[400722021,1767796990823,-500.0,0.00015425,2]
[400722022,1767796990855,-500.0,0.00015425,2]
[400722023,1767796990882,-532.04634252,0.00015425,2]
[400722024,1767796990908,-500.0,0.00015425,2]
[400722025,1767796990949,-500.0,0.00015425,2]
[400722026,1767796990978,-500.0,0.00015425,2]
[400722027,1767796991005,-500.0,0.00015425,2]
[400722028,1767796991030,-500.0,0.00015425,2]
[400722029,1767796991056,-500.0,0.00015425,2]
[400722030,1767796991080,-500.0,0.00015425,2]
[400722031,1767796991103,-500.0,0.00015425,2]
[400722032,1767796991129,-500.0,0.00015425,2]
[400722033,1767796991154,-500.0,0.00015425,2]
[400722034,1767796991179,-500.0,0.00015425,2]
[400722035,1767796991203,-500.0,0.00015425,2]
[400722036,1767796991227,-500.0,0.00015425,2]
[400722037,1767796991251,-500.0,0.00015425,2]
[400722038,1767796991275,-500.0,0.00015425,2]
[400722039,1767796991300,-500.0,0.00015425,2]
[400722040,1767796991326,-500.0,0.00015425,2]
[400722041,1767796991351,-500.0,0.00015425,2]
[400722042,1767796991376,-500.0,0.00015425,2]
[400722043,1767796991401,-500.0,0.00015425,2]
[400722044,1767796991426,-500.0,0.00015425,2]
[400722045,1767796991454,-500.0,0.00015425,2]
[400722046,1767796991480,-500.0,0.00015425,2]
[400722047,1767796991506,-500.0,0.00015425,2]
[400722048,1767796991531,-500.0,0.00015425,2]
[400722049,1767796991556,-500.0,0.00015425,2]
[400722050,1767796991583,-500.0,0.00015425,2]
[400722051,1767796991607,-500.0,0.00015425,2]
[400722052,1767796991633,-500.0,0.00015425,2]
[400722053,1767796991658,-500.0,0.00015425,2]
[400722054,1767796991685,-500.0,0.00015425,2]
[400722055,1767796991708,-500.0,0.00015425,2]
[400722056,1767796991732,-500.0,0.00015425,2]
[400722057,1767796991755,-500.0,0.00015425,2]
[400722058,1767796991779,-434.71577993,0.00015425,2]
[400722059,1767796991804,-500.0,0.00015425,2]
[400722060,1767796991833,-500.0,0.00015425,2]
[400722061,1767796991861,-500.0,0.00015425,2]
[400722062,1767796991887,-500.0,0.00015425,2]
[400722063,1767796991911,-500.0,0.00015425,2]
[400722064,1767796991936,-500.0,0.00015425,2]
[400722065,1767796991961,-500.0,0.00015425,2]
[400722066,1767796991985,-500.0,0.00015425,2]
[400722067,1767796992010,-652587.09294051,0.00015426,2]
[400722068,1767796992535,-153.96534246,0.00015426,2]
[400722069,1767796994581,4300.77291017,0.00015325,2]
[400722070,1767796994613,10000.01,0.00015325,2]
[400722071,1767796994656,10000.01,0.00015325,2]
[400722072,1767796994692,10000.01,0.00015325,2]
[400722073,1767796994724,10000.01,0.00015325,2]
[400722074,1767796994755,10000.01,0.00015325,2]
[400722075,1767796994785,10000.01,0.00015325,2]
[400722076,1767796994817,10000.01,0.00015325,2]
[400722077,1767796994849,10000.01,0.00015325,2]